fUST/lending_fUST_20250326
["ID","MTS","AMOUNT","RATE_DAILY","PERIOD"]
[356673453,1742940671963,-278.93477762,0.00013301,2]
[356673454,1742940671973,-784.0,0.00013301,2]
[356673455,1742940671983,-500.0,0.00013301,2]
[356673456,1742940671992,-410.01558519,0.00013315,2]
[356673457,1742940672001,-3376.971,0.0001333,2]
[356673458,1742940672010,-500.0,0.00013424,2]
[356673459,1742940672020,-500.0,0.00013424,2]
[356673460,1742940672029,-500.0,0.00013424,2]
[356673461,1742940672038,-500.0,0.00013424,2]
[356673462,1742940672047,-500.0,0.00013424,2]
[356673463,1742940672057,-684.91,0.00013424,2]
[356673464,1742940672066,-500.0,0.00013424,2]
[356673465,1742940672076,-824.78,0.00013424,2]
[356673466,1742940672086,-898.44,0.00013424,2]
[356673467,1742940672097,-868.42,0.00013424,2]
[356673468,1742940672107,-886.5,0.00013424,2]
[356673469,1742940672118,-877.34,0.00013424,2]
[356673470,1742940672128,-1633.27,0.00013424,2]
[356673471,1742940672138,-871.35,0.00013424,2]
[356673472,1742940672147,-500.0,0.00013424,2]
[356673473,1742940672157,-314.68,0.00013424,2]
[356673474,1742940672167,-848.11,0.00013424,2]
[356673475,1742940672176,-711.15,0.00013424,2]
[356673476,1742940672185,-500.0,0.00013424,2]
[356673477,1742940672194,-169.845839,0.00013424,2]
[356673478,1742940672203,-500.0,0.00013424,2]
[356673479,1742940672212,-500.0,0.00013424,2]
[356673480,1742940672222,-169.845839,0.00013424,2]
[356673481,1742940672231,-500.0,0.00013424,2]
[356673482,1742940672240,-500.0,0.00013424,2]
[356673483,1742940672250,-500.0,0.00013424,2]
[356673484,1742940672259,-500.0,0.00013424,2]
[356673485,1742940672269,-500.0,0.00013424,2]
[356673486,1742940672278,-949.97,0.00013424,2]
[356673487,1742940672287,-1437.06,0.00013424,2]
[356673488,1742940672296,-500.0,0.00013424,2]
[356673489,1742940672306,-500.0,0.00013424,2]
[356673490,1742940672315,-574.21,0.00013424,2]
[356673491,1742940672325,-975.56,0.00013424,2]
[356673492,1742940672334,-1592.05,0.00013424,2]
[356673493,1742940672346,-500.0,0.00013424,2]
[356673494,1742940672355,-500.0,0.00013424,2]
[356673495,1742940672365,-500.0,0.00013424,2]
[356673496,1742940672374,-2306.34,0.00013424,2]
[356673497,1742940672383,-151.0,0.00013424,2]
[356673498,1742940672392,-500.0,0.00013424,2]
[356673499,1742940672401,-500.0,0.00013424,2]
[356673500,1742940672410,-341.24,0.00013424,2]
[356673501,1742940672419,-500.0,0.00013424,2]
[356673502,1742940672428,-671.72,0.00013424,2]
[356673503,1742940672437,-500.0,0.00013424,2]
[356673504,1742940672447,-500.0,0.00013424,2]
[356673505,1742940672456,-500.0,0.00013424,2]
[356673506,1742940672466,-530.87,0.00013424,2]
[356673507,1742940672475,-500.0,0.00013424,2]
[356673508,1742940672485,-500.0,0.00013424,2]
[356673509,1742940672494,-987.75,0.00013424,2]
[356673510,1742940672504,-773.2,0.00013424,2]
[356673511,1742940672513,-500.0,0.00013424,2]
[356673512,1742940672522,-519.65,0.00013424,2]
[356673513,1742940672531,-593.22,0.00013424,2]
[356673514,1742940672540,-500.0,0.00013424,2]
[356673515,1742940672550,-500.0,0.00013424,2]
[356673516,1742940672559,-500.0,0.00013424,2]
[356673517,1742940672572,-500.0,0.00013424,2]
[356673518,1742940672582,-500.0,0.00013424,2]
[356673519,1742940672592,-500.0,0.00013424,2]
[356673520,1742940672601,-500.0,0.00013424,2]
[356673521,1742940672611,-500.0,0.00013424,2]
[356673522,1742940672621,-500.0,0.00013424,2]
[356673523,1742940672631,-521.04227177,0.00013424,2]
[356673524,1742940672641,-500.0,0.00013424,2]
[356673525,1742940672652,-987.07,0.00013424,2]
[356673526,1742940672661,-500.0,0.00013424,2]
[356673527,1742940672670,-500.0,0.00013424,2]
[356673528,1742940672680,-500.0,0.00013424,2]
[356673529,1742940672689,-2588.72,0.00013424,2]
[356673530,1742940672699,-635.13,0.00013424,2]
[356673531,1742940672708,-248.58,0.00013424,2]
[356673532,1742940672717,-7574.04,0.00013424,2]
[356673533,1742940672727,-706.39,0.00013424,2]
[356673534,1742940672737,-919.95,0.00013424,2]
[356673535,1742940672746,-500.0,0.00013424,2]
[356673536,1742940672755,-835.22,0.00013424,2]
[356673537,1742940672765,-288.59,0.00013424,2]
[356673538,1742940672775,-500.0,0.00013424,2]
[356673539,1742940672784,-821.98,0.00013424,2]
[356673540,1742940672794,-1269.14,0.00013424,2]
[356673541,1742940672803,-3195.43,0.00013424,2]
[356673542,1742940672813,-2353.49,0.00013424,2]
[356673543,1742940672823,-500.0,0.00013424,2]
[356673544,1742940672833,-4463.96,0.00013424,2]
[356673545,1742940672845,-712.38,0.00013424,2]
[356673546,1742940672855,-5474.58,0.00013424,2]
[356673547,1742940672865,-500.0,0.00013424,2]
[356673548,1742940672874,-500.0,0.00013424,2]
[356673549,1742940672884,-5190.69,0.00013424,2]
[356673550,1742940672893,-1492.31,0.00013424,2]
[356673551,1742940672903,-15419.73,0.00013424,2]
[356673552,1742940672912,-566.69,0.00013424,2]
[356673553,1742940672922,-3644.62,0.00013424,2]
[356673554,1742940672932,-1533.82,0.00013424,2]
[356673555,1742940672942,-500.0,0.00013424,2]
[356673556,1742940672951,-500.0,0.00013424,2]
[356673557,1742940672961,-500.0,0.00013424,2]
[356673558,1742940672971,-3706.87,0.00013424,2]
[356673559,1742940672981,-500.0,0.00013424,2]
[356673560,1742940672990,-961.87,0.00013424,2]
[356673561,1742940673000,-1104.44,0.00013424,2]
[356673562,1742940673009,-579.63,0.00013424,2]
[356673563,1742940673019,-2129.68,0.00013424,2]
[356673564,1742940673028,-7244.39,0.00013424,2]
[356673565,1742940673037,-500.0,0.00013424,2]
[356673566,1742940673047,-607.07974284,0.00013424,2]
[356673567,1742940673056,-9523.56,0.00013424,2]
[356673568,1742940673066,-164.31,0.00013424,2]
[356673569,1742940673075,-10969.8,0.00013424,2]
[356673570,1742940673085,-1115.76,0.00013424,2]
[356673571,1742940673096,-103726.98,0.00013424,2]
[356673572,1742940673106,-568.91,0.00013424,2]
[356673573,1742940673116,-500.0,0.00013424,2]
[356673574,1742940673125,-4158.75,0.00013424,2]
[356673575,1742940673134,-500.0,0.00013424,2]
[356673576,1742940673246,-1141.01,0.00013424,2]
[356673577,1742940673256,-2734.78,0.00013424,2]
[356673578,1742940673265,-500.0,0.00013424,2]
[356673579,1742940673275,-500.0,0.00013424,2]
[356673580,1742940673284,-500.0,0.00013424,2]
[356673581,1742940673294,-1309.59,0.00013424,2]
[356673582,1742940673303,-2068.14,0.00013424,2]
[356673583,1742940673313,-500.0,0.00013424,2]
[356673584,1742940673322,-5178.43,0.00013424,2]
[356673585,1742940673331,-1828.29,0.00013424,2]
[356673586,1742940673342,-500.0,0.00013424,2]
[356673587,1742940673352,-6147.84,0.00013424,2]
[356673588,1742940673361,-500.0,0.00013424,2]
[356673589,1742940673372,-214.81,0.00013424,2]
[356673590,1742940673382,-2427.31,0.00013424,2]
[356673591,1742940673392,-500.0,0.00013424,2]
[356673592,1742940673401,-882.86,0.00013424,2]
[356673593,1742940673411,-568.23,0.00013424,2]
[356673594,1742940673421,-7679.91,0.00013424,2]
[356673595,1742940673431,-668.75,0.00013424,2]
[356673596,1742940673440,-1324.57,0.00013424,2]
[356673597,1742940673449,-500.0,0.00013424,2]
[356673598,1742940673459,-3036.54,0.00013424,2]
[356673599,1742940673469,-500.0,0.00013424,2]
[356673600,1742940673478,-722.44,0.00013424,2]
[356673601,1742940673487,-486.35,0.00013424,2]
[356673602,1742940673497,-2355.41,0.00013424,2]
[356673603,1742940673506,-518.08,0.00013424,2]
[356673604,1742940673516,-500.0,0.00013424,2]
[356673605,1742940673525,-660.47,0.00013424,2]
[356673606,1742940673535,-500.0,0.00013424,2]
[356673607,1742940673545,-500.0,0.00013424,2]
[356673608,1742940673554,-500.0,0.00013424,2]
[356673609,1742940673564,-500.0,0.00013424,2]
[356673610,1742940673578,-500.0,0.00013424,2]
[356673611,1742940673588,-500.0,0.00013424,2]
[356673612,1742940673599,-358.5903121,0.00013425,2]
[356673613,1742940673608,-358.5903121,0.00013425,2]
[356673614,1742940673619,-306.0,0.00013425,2]
[356673615,1742940673629,-156.0352932,0.00013425,2]
[356673616,1742940673638,-153.0,0.00013425,2]
[356673617,1742940673649,-358.5903121,0.00013425,2]
[356673618,1742940673658,-573.2538469,0.00013425,2]
[356673619,1742940673668,-358.5903121,0.00013425,2]
[356673620,1742940673677,-358.5903121,0.00013425,2]
[356673621,1742940673687,-153.0,0.00013425,2]
[356673622,1742940673696,-156.0352932,0.00013425,2]
[356673623,1742940673705,-358.5903121,0.00013425,2]
[356673624,1742940673714,-153.0,0.00013425,2]
[356673625,1742940673724,-156.0352932,0.00013425,2]
[356673626,1742940673734,-358.5903121,0.00013425,2]
[356673627,1742940673743,-358.5903121,0.00013425,2]
[356673628,1742940673753,-358.5903121,0.00013425,2]
[356673629,1742940673763,-156.0352932,0.00013425,2]
[356673630,1742940673772,-358.5903121,0.00013425,2]
[356673631,1742940673781,-156.0352932,0.00013425,2]
[356673632,1742940673791,-358.5903121,0.00013425,2]
[356673633,1742940673800,-358.5903121,0.00013425,2]
[356673634,1742940673811,-358.5903121,0.00013425,2]
[356673635,1742940673820,-156.0352932,0.00013425,2]
[356673636,1742940673830,-358.5903121,0.00013425,2]
[356673637,1742940673840,-358.5903121,0.00013425,2]
[356673638,1742940673850,-156.0352932,0.00013425,2]
[356673639,1742940673860,-358.5903121,0.00013425,2]
[356673640,1742940673869,-358.5903121,0.00013425,2]
[356673641,1742940673879,-156.0352932,0.00013425,2]
[356673642,1742940673889,-358.5903121,0.00013425,2]
[356673643,1742940673899,-358.5903121,0.00013425,2]
[356673644,1742940673909,-358.5903121,0.00013425,2]
[356673645,1742940673918,-156.0352932,0.00013425,2]
[356673646,1742940673928,-358.5903121,0.00013425,2]
[356673647,1742940673937,-156.0352932,0.00013425,2]
[356673648,1742940673947,-358.5903121,0.00013425,2]
[356673649,1742940673957,-358.5903121,0.00013425,2]
[356673650,1742940673967,-358.5903121,0.00013425,2]
[356673651,1742940673976,-358.5903121,0.00013425,2]
[356673652,1742940673986,-354.7911004,0.00013425,2]
[356673653,1742940673996,-500.0,0.00013438,2]
[356673654,1742940674006,-642.0,0.00013438,2]
[356673655,1742940674016,-500.0,0.00013438,2]
[356673656,1742940674025,-784.0,0.00013438,2]
[356673657,1742940674035,-528.97377258,0.00013438,2]
[356673658,1742940674045,-500.0,0.00013575,2]
[356673659,1742940674056,-642.0,0.00013575,2]
[356673660,1742940674066,-500.0,0.00013575,2]
[356673661,1742940674076,-784.0,0.00013575,2]
[356673662,1742940674086,-456.81125395,0.00013589,2]
[356673663,1742940674096,-500.0,0.00013698,2]
[356673664,1742940674105,-500.0,0.00013698,2]
[356673665,1742940674115,-500.0,0.00013698,2]
[356673666,1742940674125,-1000.0,0.00013698,2]
[356673667,1742940674134,-500.0,0.00013698,2]
[356673668,1742940674143,-500.0,0.00013698,2]
[356673669,1742940674152,-684.91,0.00013698,2]
[356673670,1742940674162,-500.0,0.00013698,2]
[356673671,1742940674171,-824.78,0.00013698,2]
[356673672,1742940674181,-898.44,0.00013698,2]
[356673673,1742940674191,-868.42,0.00013698,2]
[356673674,1742940674202,-886.5,0.00013698,2]
[356673675,1742940674211,-877.34,0.00013698,2]
[356673676,1742940674222,-1633.27,0.00013698,2]
[356673677,1742940674232,-871.35,0.00013698,2]
[356673678,1742940674241,-500.0,0.00013698,2]
[356673679,1742940674251,-848.11,0.00013698,2]
[356673680,1742940674261,-711.15,0.00013698,2]
[356673681,1742940674271,-500.0,0.00013698,2]
[356673682,1742940674281,-169.845839,0.00013698,2]
[356673683,1742940674291,-500.0,0.00013698,2]
[356673684,1742940674300,-500.0,0.00013698,2]
[356673685,1742940674310,-169.845839,0.00013698,2]
[356673686,1742940674320,-500.0,0.00013698,2]
[356673687,1742940674330,-500.0,0.00013698,2]
[356673688,1742940674340,-500.0,0.00013698,2]
[356673689,1742940674350,-500.0,0.00013698,2]
[356673690,1742940674360,-500.0,0.00013698,2]
[356673691,1742940674370,-949.97,0.00013698,2]
[356673692,1742940674379,-1437.06,0.00013698,2]
[356673693,1742940674390,-500.0,0.00013698,2]
[356673694,1742940674399,-367.49,0.00013698,2]
[356673695,1742940674409,-574.21,0.00013698,2]
[356673696,1742940674418,-975.56,0.00013698,2]
[356673697,1742940674428,-1592.05,0.00013698,2]
[356673698,1742940674438,-500.0,0.00013698,2]
[356673699,1742940674447,-500.0,0.00013698,2]
[356673700,1742940674457,-500.0,0.00013698,2]
[356673701,1742940674467,-2306.34,0.00013698,2]
[356673702,1742940674477,-500.0,0.00013698,2]
[356673703,1742940674486,-500.0,0.00013698,2]
[356673704,1742940674495,-500.0,0.00013698,2]
[356673705,1742940674505,-671.72,0.00013698,2]
[356673706,1742940674514,-264.15,0.00013698,2]
[356673707,1742940674524,-500.0,0.00013698,2]
[356673708,1742940674534,-500.0,0.00013698,2]
[356673709,1742940674544,-530.87,0.00013698,2]
[356673710,1742940674554,-500.0,0.00013698,2]
[356673711,1742940674564,-500.0,0.00013698,2]
[356673712,1742940674579,-987.75,0.00013698,2]
[356673713,1742940674589,-773.2,0.00013698,2]
[356673714,1742940674600,-500.0,0.00013698,2]
[356673715,1742940674611,-519.65,0.00013698,2]
[356673716,1742940674621,-593.22,0.00013698,2]
[356673717,1742940674631,-617.48,0.00013698,2]
[356673718,1742940674641,-560.90374137,0.00013698,2]
[356673719,1742940674651,-500.0,0.00013698,2]
[356673720,1742940674662,-500.0,0.00013698,2]
[356673721,1742940674672,-500.0,0.00013698,2]
[356673722,1742940674682,-500.0,0.00013698,2]
[356673723,1742940674691,-500.0,0.00013698,2]
[356673724,1742940674701,-500.0,0.00013698,2]
[356673725,1742940674711,-225.07,0.00013698,2]
[356673726,1742940674720,-500.0,0.00013698,2]
[356673727,1742940674729,-500.0,0.00013698,2]
[356673728,1742940674739,-987.07,0.00013698,2]
[356673729,1742940674748,-296.45,0.00013698,2]
[356673730,1742940674758,-500.0,0.00013698,2]
[356673731,1742940674767,-500.0,0.00013698,2]
[356673732,1742940674776,-2588.72,0.00013698,2]
[356673733,1742940674785,-635.13,0.00013698,2]
[356673734,1742940674795,-7574.04,0.00013698,2]
[356673735,1742940674804,-706.39,0.00013698,2]
[356673736,1742940674814,-919.95,0.00013698,2]
[356673737,1742940674823,-500.0,0.00013698,2]
[356673738,1742940674833,-835.22,0.00013698,2]
[356673739,1742940674843,-500.0,0.00013698,2]
[356673740,1742940674852,-821.98,0.00013698,2]
[356673741,1742940674862,-1269.14,0.00013698,2]
[356673742,1742940674872,-3195.43,0.00013698,2]
[356673743,1742940674881,-2353.49,0.00013698,2]
[356673744,1742940674891,-500.57,0.00013698,2]
[356673745,1742940674901,-4463.96,0.00013698,2]
[356673746,1742940674911,-712.38,0.00013698,2]
[356673747,1742940674921,-5474.58,0.00013698,2]
[356673748,1742940674931,-500.0,0.00013698,2]
[356673749,1742940674940,-500.0,0.00013698,2]
[356673750,1742940674950,-5190.69,0.00013698,2]
[356673751,1742940674960,-1492.31,0.00013698,2]
[356673752,1742940674969,-15419.73,0.00013698,2]
[356673753,1742940674979,-3644.62,0.00013698,2]
[356673754,1742940674989,-1533.82,0.00013698,2]
[356673755,1742940674999,-500.0,0.00013698,2]
[356673756,1742940675008,-500.0,0.00013698,2]
[356673757,1742940675018,-500.0,0.00013698,2]
[356673758,1742940675028,-3706.87,0.00013698,2]
[356673759,1742940675038,-500.0,0.00013698,2]
[356673760,1742940675047,-961.87,0.00013698,2]
[356673761,1742940675057,-1104.44,0.00013698,2]
[356673762,1742940675067,-579.63,0.00013698,2]
[356673763,1742940675077,-2129.68,0.00013698,2]
[356673764,1742940675185,-7244.39,0.00013698,2]
[356673765,1742940675196,-500.0,0.00013698,2]
[356673766,1742940675207,-9523.56,0.00013698,2]
[356673767,1742940675217,-10969.8,0.00013698,2]
[356673768,1742940675227,-1115.76,0.00013698,2]
[356673769,1742940675237,-103726.98,0.00013698,2]
[356673770,1742940675248,-568.91,0.00013698,2]
[356673771,1742940675257,-500.0,0.00013698,2]
[356673772,1742940675267,-4158.75,0.00013698,2]
[356673773,1742940675276,-500.0,0.00013698,2]
[356673774,1742940675286,-1141.01,0.00013698,2]
[356673775,1742940675296,-2734.78,0.00013698,2]
[356673776,1742940675306,-500.0,0.00013698,2]
[356673777,1742940675316,-500.0,0.00013698,2]
[356673778,1742940675326,-499.95,0.00013698,2]
[356673779,1742940675336,-1309.59,0.00013698,2]
[356673780,1742940675346,-2068.14,0.00013698,2]
[356673781,1742940675357,-500.0,0.00013698,2]
[356673782,1742940675367,-5178.43,0.00013698,2]
[356673783,1742940675376,-1828.29,0.00013698,2]
[356673784,1742940675387,-236.14,0.00013698,2]
[356673785,1742940675396,-6147.84,0.00013698,2]
[356673786,1742940675405,-500.0,0.00013698,2]
[356673787,1742940675415,-2427.31,0.00013698,2]
[356673788,1742940675426,-500.0,0.00013698,2]
[356673789,1742940675437,-882.86,0.00013698,2]
[356673790,1742940675447,-568.23,0.00013698,2]
[356673791,1742940675457,-7679.91,0.00013698,2]
[356673792,1742940675468,-668.75,0.00013698,2]
[356673793,1742940675478,-1324.57,0.00013698,2]
[356673794,1742940675488,-500.0,0.00013698,2]
[356673795,1742940675499,-636.19,0.00013698,2]
[356673796,1742940675509,-636.19,0.00013698,2]
[356673797,1742940675518,-636.19,0.00013698,2]
[356673798,1742940675529,-636.19,0.00013698,2]
[356673799,1742940675539,-3036.54,0.00013698,2]
[356673800,1742940675549,-636.19,0.00013698,2]
[356673801,1742940675559,-636.19,0.00013698,2]
[356673802,1742940675570,-636.19,0.00013698,2]
[356673803,1742940675582,-636.19,0.00013698,2]
[356673804,1742940675592,-500.0,0.00013698,2]
[356673805,1742940675601,-636.19,0.00013698,2]
[356673806,1742940675611,-636.19,0.00013698,2]
[356673807,1742940675621,-722.44,0.00013698,2]
[356673808,1742940675632,-636.19,0.00013698,2]
[356673809,1742940675644,-518.08,0.00013698,2]
[356673810,1742940675653,-2355.41,0.00013698,2]
[356673811,1742940675663,-500.0,0.00013698,2]
[356673812,1742940675673,-660.47,0.00013698,2]
[356673813,1742940675682,-500.0,0.00013698,2]
[356673814,1742940675692,-500.0,0.00013698,2]
[356673815,1742940675701,-500.0,0.00013698,2]
[356673816,1742940675710,-500.0,0.00013698,2]
[356673817,1742940675719,-500.0,0.00013698,2]
[356673818,1742940675728,-179.69451932,0.00013699,2]
[356673819,1742940675738,-1875.722799,0.00013699,2]
[356673820,1742940675748,-1000.0,0.00013699,3]
[356673821,1742940675758,-1000.0,0.00013699,3]
[356673822,1742940675768,-283.548902,0.00013699,3]
[356673823,1742940675778,-500.0,0.00013699,2]
[356673824,1742940675788,-500.0,0.00013699,2]
[356673825,1742940675798,-500.0,0.00013699,2]
[356673826,1742940675807,-500.0,0.00013699,2]
[356673827,1742940675817,-500.0,0.00013699,2]
[356673828,1742940675827,-505.6890105,0.00013699,2]
[356673829,1742940675837,-311.85633476,0.00013699,2]
[356673830,1742940675847,-500.0,0.00013699,2]
[356673831,1742940675857,-500.0,0.00013699,2]
[356673832,1742940675867,-500.0,0.00013699,2]
[356673833,1742940675877,-500.0,0.00013699,2]
[356673834,1742940675887,-175.80925273,0.00013699,2]
[356673835,1742940675897,-500.0,0.00013699,2]
[356673836,1742940675907,-500.0,0.00013699,2]
[356673837,1742940675918,-267.38749257,0.00013699,2]
[356673838,1742940675929,-500.0,0.00013699,2]
[356673839,1742940675939,-500.0,0.00013699,2]
[356673840,1742940675949,-500.0,0.00013699,2]
[356673841,1742940675959,-501.60821472,0.00013699,2]
[356673842,1742940675970,-500.0,0.00013699,2]
[356673843,1742940675980,-500.0,0.00013699,2]
[356673844,1742940675991,-150.20325666,0.00013699,2]
[356673845,1742940676000,-501.29583029,0.00013699,2]
[356673846,1742940676010,-500.0,0.00013699,2]
[356673847,1742940676021,-500.0,0.00013699,2]
[356673848,1742940676031,-500.94491666,0.00013699,2]
[356673849,1742940676042,-500.0,0.00013699,2]
[356673850,1742940676054,-301.29664666,0.00013699,2]
[356673851,1742940676065,-150.0,0.00013699,2]
[356673852,1742940676076,-500.0,0.00013699,2]
[356673853,1742940676085,-500.98790136,0.00013699,2]
[356673854,1742940676097,-518.54248024,0.00013699,2]
[356673855,1742940676107,-500.0,0.00013699,2]
[356673856,1742940676118,-500.0,0.00013699,2]
[356673857,1742940676128,-500.0,0.00013699,2]
[356673858,1742940676139,-500.0,0.00013699,2]
[356673859,1742940676149,-500.0,0.00013699,2]
[356673860,1742940676160,-279.75278749,0.00013699,2]
[356673861,1742940676170,-500.0,0.00013699,2]
[356673862,1742940676181,-500.0,0.00013699,2]
[356673863,1742940676191,-500.0,0.00013699,2]
[356673864,1742940676202,-500.0,0.00013699,2]
[356673865,1742940676212,-500.0,0.00013699,2]
[356673866,1742940676222,-500.0,0.00013699,2]
[356673867,1742940676232,-500.0,0.00013699,2]
[356673868,1742940676242,-613.07030683,0.00013699,2]
[356673869,1742940676252,-500.0,0.00013699,2]
[356673870,1742940676262,-500.0,0.00013699,2]
[356673871,1742940676271,-500.0,0.00013699,2]
[356673872,1742940676281,-150.90912351,0.00013699,2]
[356673873,1742940676292,-613.1784981,0.00013699,2]
[356673874,1742940676301,-500.86846009,0.00013699,2]
[356673875,1742940676311,-221.29501886,0.00013699,2]
[356673876,1742940676321,-164.55662383,0.00013699,2]
[356673877,1742940676331,-500.0,0.00013699,2]
[356673878,1742940676341,-500.0,0.00013699,2]
[356673879,1742940676352,-508.6871628,0.00013699,2]
[356673880,1742940676362,-502.04355511,0.00013699,2]
[356673881,1742940676372,-161.18195358,0.00013699,2]
[356673882,1742940676382,-500.0,0.00013699,2]
[356673883,1742940676392,-500.0,0.00013699,2]
[356673884,1742940676401,-434.10189132,0.00013699,2]
[356673885,1742940676411,-398.96349525,0.00013699,2]
[356673886,1742940676421,-301.20596459,0.00013699,2]
[356673887,1742940676430,-500.63955412,0.00013699,2]
[356673888,1742940676441,-518.35445932,0.00013699,2]
[356673889,1742940676451,-500.0,0.00013699,2]
[356673890,1742940676461,-452.03626924,0.00013699,2]
[356673891,1742940676471,-211.0,0.00013699,2]
[356673892,1742940676480,-7836.23276701,0.00013699,2]
[356673893,1742940676490,-7836.23276701,0.00013699,2]
[356673894,1742940676500,-500.0,0.00013699,2]
[356673895,1742940676510,-7836.23276701,0.00013699,2]
[356673896,1742940676520,-177.11501615,0.00013699,2]
[356673897,1742940676529,-7836.23276701,0.00013699,2]
[356673898,1742940676539,-7836.23276701,0.00013699,2]
[356673899,1742940676549,-7836.23276701,0.00013699,2]
[356673900,1742940676559,-7836.23276701,0.00013699,2]
[356673901,1742940676569,-7836.23276701,0.00013699,2]
[356673902,1742940676581,-7836.23276701,0.00013699,2]
[356673903,1742940676591,-7836.23276701,0.00013699,2]
[356673904,1742940676601,-7836.23276701,0.00013699,2]
[356673905,1742940676612,-7836.23276701,0.00013699,2]
[356673906,1742940676622,-7836.23276701,0.00013699,2]
[356673907,1742940676633,-7836.23276701,0.00013699,2]
[356673908,1742940676643,-7836.23276701,0.00013699,2]
[356673909,1742940676655,-7836.23276701,0.00013699,2]
[356673910,1742940676666,-7836.23276701,0.00013699,2]
[356673911,1742940676676,-7836.23276701,0.00013699,2]
[356673912,1742940676686,-7836.23276701,0.00013699,2]
[356673913,1742940676696,-7836.23276701,0.00013699,2]
[356673914,1742940676705,-7836.23276701,0.00013699,2]
[356673915,1742940676714,-7836.23276701,0.00013699,2]
[356673916,1742940676724,-7836.23276701,0.00013699,2]
[356673917,1742940676734,-7836.23276701,0.00013699,2]
[356673918,1742940676744,-7836.23276701,0.00013699,2]
[356673919,1742940676755,-7836.23276701,0.00013699,2]
[356673920,1742940676764,-7836.23276701,0.00013699,2]
[356673921,1742940676775,-7836.23276701,0.00013699,2]
[356673922,1742940676785,-7836.23276701,0.00013699,2]
[356673923,1742940676794,-7836.23276701,0.00013699,2]
[356673924,1742940676804,-7836.23276701,0.00013699,2]
[356673925,1742940676814,-7836.23276701,0.00013699,2]
[356673926,1742940676824,-7836.23276701,0.00013699,2]
[356673927,1742940676834,-7836.23276701,0.00013699,2]
[356673928,1742940676845,-7836.23276701,0.00013699,2]
[356673929,1742940676855,-7836.23276701,0.00013699,2]
[356673930,1742940676865,-7836.23276701,0.00013699,2]
[356673931,1742940676874,-7836.23276701,0.00013699,2]
[356673932,1742940676884,-7836.23276701,0.00013699,2]
[356673933,1742940676894,-7836.23276701,0.00013699,2]
[356673934,1742940676904,-7836.23276701,0.00013699,2]
[356673935,1742940676915,-7836.23276701,0.00013699,2]
[356673936,1742940676926,-7836.23276701,0.00013699,2]
[356673937,1742940676936,-7836.23276701,0.00013699,2]
[356673938,1742940677052,-7836.23276701,0.00013699,2]
[356673939,1742940677063,-7836.23276701,0.00013699,2]
[356673940,1742940677072,-7836.23276701,0.00013699,2]
[356673941,1742940677082,-7836.23276701,0.00013699,2]
[356673942,1742940677093,-7836.23276701,0.00013699,2]
[356673943,1742940677103,-7836.23276701,0.00013699,2]
[356673944,1742940677114,-7836.23276701,0.00013699,2]
[356673945,1742940677124,-7836.23276701,0.00013699,2]
[356673946,1742940677133,-7836.23276701,0.00013699,2]
[356673947,1742940677144,-7836.23276701,0.00013699,2]
[356673948,1742940677154,-7657.11887519,0.00013699,2]
[356673949,1742940677163,-7657.11887519,0.00013699,2]
[356673950,1742940677174,-7657.11887519,0.00013699,2]
[356673951,1742940677183,-7657.11887519,0.00013699,2]
[356673952,1742940677193,-7657.11887519,0.00013699,2]